[Event "Titled Tuesday Blitz January 17 Late 2023"]
[White "Solon, Nathan"]
[Black "Zierk, Steven"]
[WhiteFideId "2017229"]
[BlackFideId "2034255"]
[WhiteElo "2306"]
[BlackElo "2488"]
[Result "0-1"]
[Round "08"]
[TimeControl "180+2"]
[Date "2023.01.17"]
[WhiteClock "0:00:06"]
[BlackClock "0:01:09"]

1. Nf3 {[%clk 0:03:00]}  d5 {[%clk 0:02:58]} 2. g3 {[%clk 0:03:01]}  Nf6 {[%clk 0:02:58]} 3. Bg2 {[%clk 0:03:01]}  c6 {[%clk 0:02:59]} 4. O-O {[%clk 0:03:01]}  Bg4 {[%clk 0:03:00]} 5. h3 {[%clk 0:03:01]}  Bxf3 {[%clk 0:02:59]} 6. Bxf3 {[%clk 0:03:01]}  e5 {[%clk 0:03:00]} 7. d3 {[%clk 0:03:01]}  Be7 {[%clk 0:02:59]} 8. e4 {[%clk 0:02:58]}  dxe4 {[%clk 0:02:59]} 9. dxe4 {[%clk 0:02:59]}  Qc7 {[%clk 0:02:59]} 10. a4 {[%clk 0:02:56]}  a5 {[%clk 0:02:58]} 11. Nd2 {[%clk 0:02:55]}  Nbd7 {[%clk 0:02:58]} 12. Nc4 {[%clk 0:02:55]}  Nb6 {[%clk 0:02:56]} 13. Qe2 {[%clk 0:02:48]}  O-O {[%clk 0:02:53]} 14. Be3 {[%clk 0:02:46]}  Nxc4 {[%clk 0:02:52]} 15. Qxc4 {[%clk 0:02:47]}  Rfd8 {[%clk 0:02:48]} 16. Rfd1 {[%clk 0:02:41]}  Rxd1+ {[%clk 0:02:42]} 17. Rxd1 {[%clk 0:02:42]}  Rd8 {[%clk 0:02:42]} 18. Rxd8+ {[%clk 0:02:39]}  Bxd8 {[%clk 0:02:43]} 19. Kg2 {[%clk 0:02:35]}  Be7 {[%clk 0:02:40]} 20. Be2 {[%clk 0:02:30]}  g6 {[%clk 0:02:35]} 21. f3 {[%clk 0:02:28]}  Nd7 {[%clk 0:02:33]} 22. h4 {[%clk 0:02:19]}  h5 {[%clk 0:02:30]} 23. Qa2 {[%clk 0:02:04]}  Bc5 {[%clk 0:02:28]} 24. Bg5 {[%clk 0:01:59]}  Qd6 {[%clk 0:02:16]} 25. c3 {[%clk 0:01:48]}  Ba7 {[%clk 0:02:09]} 26. Qc4 {[%clk 0:01:37]}  Nb6 {[%clk 0:02:05]} 27. Qb3 {[%clk 0:01:35]}  Qc5 {[%clk 0:02:03]} 28. Qd1 {[%clk 0:01:24]}  Kg7 {[%clk 0:02:01]} 29. Qd8 {[%clk 0:01:19]}  Nd5 {[%clk 0:01:19]} 30. Kh3 {[%clk 0:00:18]}  Qg1 {[%clk 0:01:16]} 31. Bh6+ {[%clk 0:00:07]}  Kh7 {[%clk 0:01:15]} 32. g4 {[%clk 0:00:06]}  Bf2 {[%clk 0:01:09]} 0-1


[Site "https://www.chess.com"]

[Event "Titled Tuesday Blitz January 17 Late 2023"]
[White "Domingo Nunez, Ruben"]
[Black "Bluebaum, Matthias"]
[WhiteFideId "22245570"]
[BlackFideId "24651516"]
[WhiteElo "2416"]
[BlackElo "2669"]
[Result "0-1"]
[Round "08"]
[TimeControl "180+2"]
[Date "2023.01.17"]
[WhiteClock "0:00:34"]
[BlackClock "0:01:09"]

1. e4 {[%clk 0:03:00]}  e6 {[%clk 0:02:59]} 2. Nf3 {[%clk 0:02:59]}  d5 {[%clk 0:02:59]} 3. Nc3 {[%clk 0:02:59]}  Nf6 {[%clk 0:03:00]} 4. e5 {[%clk 0:03:00]}  Nfd7 {[%clk 0:03:00]} 5. d4 {[%clk 0:03:01]}  c5 {[%clk 0:03:01]} 6. dxc5 {[%clk 0:03:01]}  Nc6 {[%clk 0:03:01]} 7. Bf4 {[%clk 0:03:02]}  Nxc5 {[%clk 0:03:02]} 8. Bd3 {[%clk 0:03:02]}  Be7 {[%clk 0:03:02]} 9. h4 {[%clk 0:03:03]}  f6 {[%clk 0:03:03]} 10. Qe2 {[%clk 0:02:59]}  Nxd3+ {[%clk 0:02:46]} 11. cxd3 {[%clk 0:02:59]}  O-O {[%clk 0:02:45]} 12. Bg3 {[%clk 0:02:40]}  d4 {[%clk 0:02:34]} 13. Nb1 {[%clk 0:02:36]}  f5 {[%clk 0:02:25]} 14. Bf4 {[%clk 0:02:36]}  b6 {[%clk 0:02:25]} 15. h5 {[%clk 0:02:29]}  h6 {[%clk 0:02:22]} 16. O-O {[%clk 0:02:28]}  Bb7 {[%clk 0:02:21]} 17. Nbd2 {[%clk 0:02:27]}  Qe8 {[%clk 0:02:20]} 18. Nh2 {[%clk 0:02:10]}  Nb4 {[%clk 0:02:19]} 19. Nc4 {[%clk 0:02:00]}  Nd5 {[%clk 0:02:16]} 20. Bd2 {[%clk 0:02:00]}  Rd8 {[%clk 0:02:13]} 21. Rac1 {[%clk 0:01:59]}  Qf7 {[%clk 0:02:11]} 22. Rfe1 {[%clk 0:01:59]}  Rfe8 {[%clk 0:02:11]} 23. Qd1 {[%clk 0:01:51]}  b5 {[%clk 0:01:56]} 24. Na5 {[%clk 0:01:50]}  Ba8 {[%clk 0:01:56]} 25. Nc6 {[%clk 0:01:50]}  Rc8 {[%clk 0:01:55]} 26. Nxd4 {[%clk 0:01:48]}  Rxc1 {[%clk 0:01:51]} 27. Bxc1 {[%clk 0:01:48]}  a6 {[%clk 0:01:39]} 28. Bd2 {[%clk 0:01:48]}  Bc5 {[%clk 0:01:38]} 29. Nb3 {[%clk 0:01:41]}  Bb6 {[%clk 0:01:37]} 30. d4 {[%clk 0:01:27]}  Rc8 {[%clk 0:01:35]} 31. Ba5 {[%clk 0:01:21]}  Bxa5 {[%clk 0:01:27]} 32. Nxa5 {[%clk 0:01:22]}  Nf4 {[%clk 0:01:28]} 33. g3 {[%clk 0:00:47]}  Nh3+ {[%clk 0:01:26]} 34. Kf1 {[%clk 0:00:47]}  Qc7 {[%clk 0:01:26]} 35. Nb3 {[%clk 0:00:45]}  Qc6 {[%clk 0:01:25]} 36. d5 {[%clk 0:00:45]}  Qc4+ {[%clk 0:01:25]} 37. Qe2 {[%clk 0:00:44]}  Qxd5 {[%clk 0:01:26]} 38. f3 {[%clk 0:00:38]}  a5 {[%clk 0:01:10]} 39. Rd1 {[%clk 0:00:38]}  Qb7 {[%clk 0:01:09]} 40. Nxa5 {[%clk 0:00:36]}  Qb6 {[%clk 0:01:09]} 41. b4 {[%clk 0:00:34]}  Qg1# {[%clk 0:01:09]} 0-1


[Site "https://www.chess.com"]

[Event "Titled Tuesday Blitz January 17 Late 2023"]
[White "Sanal, Vahap"]
[Black "Skvortsov, Andrei"]
[WhiteFideId "6300545"]
[BlackFideId "24108600"]
[WhiteElo "2600"]
[BlackElo "2313"]
[Result "1-0"]
[Round "08"]
[TimeControl "180+2"]
[Date "2023.01.17"]
[WhiteClock "0:00:32"]
[BlackClock "0:00:13"]

1. d4 {[%clk 0:03:00]}  g6 {[%clk 0:02:58]} 2. e4 {[%clk 0:03:00]}  Bg7 {[%clk 0:02:58]} 3. Nf3 {[%clk 0:03:00]}  e6 {[%clk 0:02:56]} 4. c4 {[%clk 0:02:58]}  Ne7 {[%clk 0:02:56]} 5. Nc3 {[%clk 0:02:59]}  d5 {[%clk 0:02:57]} 6. cxd5 {[%clk 0:02:57]}  exd5 {[%clk 0:02:57]} 7. e5 {[%clk 0:02:58]}  Nd7 {[%clk 0:02:54]} 8. Be2 {[%clk 0:02:57]}  O-O {[%clk 0:02:53]} 9. O-O {[%clk 0:02:58]}  f6 {[%clk 0:02:53]} 10. exf6 {[%clk 0:02:51]}  Nxf6 {[%clk 0:02:54]} 11. Ne5 {[%clk 0:02:49]}  Nf5 {[%clk 0:02:53]} 12. Bg5 {[%clk 0:02:46]}  c6 {[%clk 0:02:53]} 13. Rc1 {[%clk 0:02:26]}  Qb6 {[%clk 0:02:52]} 14. Nf3 {[%clk 0:02:07]}  Qxb2 {[%clk 0:02:44]} 15. Re1 {[%clk 0:02:04]}  Ne4 {[%clk 0:02:36]} 16. Nxe4 {[%clk 0:02:00]}  dxe4 {[%clk 0:02:34]} 17. Bc4+ {[%clk 0:02:00]}  Kh8 {[%clk 0:02:34]} 18. Ne5 {[%clk 0:02:00]}  Bxe5 {[%clk 0:01:12]} 19. dxe5 {[%clk 0:01:58]}  Qxe5 {[%clk 0:01:13]} 20. Bd2 {[%clk 0:01:59]}  Nd4 {[%clk 0:01:07]} 21. Bc3 {[%clk 0:01:39]}  c5 {[%clk 0:01:07]} 22. Rc2 {[%clk 0:01:27]}  Bf5 {[%clk 0:00:59]} 23. Rd2 {[%clk 0:01:25]}  Rad8 {[%clk 0:00:57]} 24. Qa1 {[%clk 0:01:26]}  Rf6 {[%clk 0:00:42]} 25. Kh1 {[%clk 0:01:09]}  Rfd6 {[%clk 0:00:40]} 26. Qd1 {[%clk 0:00:58]}  h5 {[%clk 0:00:35]} 27. Qc1 {[%clk 0:00:47]}  Kh7 {[%clk 0:00:34]} 28. Rb2 {[%clk 0:00:46]}  b6 {[%clk 0:00:34]} 29. Qe3 {[%clk 0:00:47]}  Qg7 {[%clk 0:00:23]} 30. h3 {[%clk 0:00:45]}  Qh6 {[%clk 0:00:21]} 31. Qg3 {[%clk 0:00:44]}  Nc6 {[%clk 0:00:19]} 32. Rbe2 {[%clk 0:00:39]}  h4 {[%clk 0:00:19]} 33. Qh2 {[%clk 0:00:39]}  Nd4 {[%clk 0:00:19]} 34. Rb2 {[%clk 0:00:33]}  Qg5 {[%clk 0:00:16]} 35. Bd2 {[%clk 0:00:32]}  Qf6 {[%clk 0:00:16]} 36. Qf4 {[%clk 0:00:32]}  Nc6 {[%clk 0:00:13]} 37. Qh6# {[%clk 0:00:32]} 1-0


[Site "https://www.chess.com"]

[Event "Titled Tuesday Blitz January 17 Late 2023"]
[White "Hamitevici, Vladimir"]
[Black "Zakhartsov, Vladimir"]
[WhiteFideId "13902393"]
[BlackFideId "4145097"]
[WhiteElo "2496"]
[BlackElo "2552"]
[Result "0-1"]
[Round "08"]
[TimeControl "180+2"]
[Date "2023.01.17"]
[WhiteClock "0:00:06"]
[BlackClock "0:00:18"]

1. a3 {[%clk 0:03:00]}  g6 {[%clk 0:02:52]} 2. d4 {[%clk 0:02:53]}  Nf6 {[%clk 0:02:50]} 3. Nf3 {[%clk 0:02:51]}  Bg7 {[%clk 0:02:49]} 4. g3 {[%clk 0:02:47]}  O-O {[%clk 0:02:45]} 5. Bg2 {[%clk 0:02:47]}  d5 {[%clk 0:02:45]} 6. O-O {[%clk 0:02:45]}  c6 {[%clk 0:02:43]} 7. Nbd2 {[%clk 0:02:39]}  Nbd7 {[%clk 0:02:40]} 8. e3 {[%clk 0:02:33]}  Re8 {[%clk 0:02:40]} 9. c4 {[%clk 0:02:31]}  e5 {[%clk 0:02:31]} 10. cxd5 {[%clk 0:02:22]}  Nxd5 {[%clk 0:02:08]} 11. e4 {[%clk 0:02:08]}  N5b6 {[%clk 0:02:06]} 12. dxe5 {[%clk 0:02:03]}  Nxe5 {[%clk 0:02:06]} 13. Nxe5 {[%clk 0:02:03]}  Bxe5 {[%clk 0:02:07]} 14. Nf3 {[%clk 0:02:01]}  Bg7 {[%clk 0:02:05]} 15. Qc2 {[%clk 0:01:45]}  Be6 {[%clk 0:01:54]} 16. Bg5 {[%clk 0:01:42]}  Qc8 {[%clk 0:01:49]} 17. Rfd1 {[%clk 0:01:37]}  Bg4 {[%clk 0:01:29]} 18. Rd6 {[%clk 0:01:24]}  h6 {[%clk 0:01:08]} 19. Bf6 {[%clk 0:01:13]}  Bxf6 {[%clk 0:00:37]} 20. Rxf6 {[%clk 0:01:13]}  Qd8 {[%clk 0:00:33]} 21. Rf4 {[%clk 0:01:02]}  Be6 {[%clk 0:00:33]} 22. Rd1 {[%clk 0:00:55]}  Qe7 {[%clk 0:00:33]} 23. e5 {[%clk 0:00:42]}  Bd5 {[%clk 0:00:33]} 24. Re1 {[%clk 0:00:36]}  Nd7 {[%clk 0:00:31]} 25. Nd4 {[%clk 0:00:19]}  Nxe5 {[%clk 0:00:27]} 26. Bxd5 {[%clk 0:00:16]}  cxd5 {[%clk 0:00:27]} 27. Kg2 {[%clk 0:00:14]}  Qd7 {[%clk 0:00:25]} 28. Qd2 {[%clk 0:00:14]}  Nc4 {[%clk 0:00:23]} 29. Rxe8+ {[%clk 0:00:13]}  Rxe8 {[%clk 0:00:22]} 30. Qc1 {[%clk 0:00:14]}  Ne5 {[%clk 0:00:20]} 31. Rh4 {[%clk 0:00:10]}  h5 {[%clk 0:00:20]} 32. Qh6 {[%clk 0:00:08]}  Ng4 {[%clk 0:00:18]} 33. h3 {[%clk 0:00:06]}  Nxh6 {[%clk 0:00:18]} 0-1


[Site "https://www.chess.com"]

[Event "Titled Tuesday Blitz January 17 Late 2023"]
[White "Tari, Aryan"]
[Black "Flores Quillas, Diego Saul Rodri"]
[WhiteFideId "1510045"]
[BlackFideId "3822508"]
[WhiteElo "2642"]
[BlackElo "2359"]
[Result "1-0"]
[Round "08"]
[TimeControl "180+2"]
[Date "2023.01.17"]
[WhiteClock "0:01:11"]
[BlackClock "0:00:02"]

1. e4 {[%clk 0:02:53]}  c5 {[%clk 0:02:58]} 2. Nc3 {[%clk 0:02:53]}  Nc6 {[%clk 0:02:57]} 3. f4 {[%clk 0:02:48]}  g6 {[%clk 0:02:56]} 4. Nf3 {[%clk 0:02:48]}  Bg7 {[%clk 0:02:56]} 5. Bb5 {[%clk 0:02:48]}  Nd4 {[%clk 0:02:53]} 6. O-O {[%clk 0:02:49]}  a6 {[%clk 0:02:42]} 7. Bd3 {[%clk 0:02:47]}  e6 {[%clk 0:02:38]} 8. e5 {[%clk 0:02:47]}  d6 {[%clk 0:02:34]} 9. exd6 {[%clk 0:02:33]}  Qxd6 {[%clk 0:02:29]} 10. Ne4 {[%clk 0:02:33]}  Qc7 {[%clk 0:02:22]} 11. Nxd4 {[%clk 0:02:28]}  cxd4 {[%clk 0:02:15]} 12. b3 {[%clk 0:02:28]}  Ne7 {[%clk 0:02:14]} 13. Ba3 {[%clk 0:02:27]}  O-O {[%clk 0:02:01]} 14. Qe1 {[%clk 0:02:23]}  Rd8 {[%clk 0:01:55]} 15. Qh4 {[%clk 0:02:23]}  Nd5 {[%clk 0:01:50]} 16. Rae1 {[%clk 0:02:18]}  Bd7 {[%clk 0:01:43]} 17. Bd6 {[%clk 0:02:16]}  Qc6 {[%clk 0:01:35]} 18. Be5 {[%clk 0:02:13]}  Rf8 {[%clk 0:00:36]} 19. Bc4 {[%clk 0:02:13]}  f6 {[%clk 0:00:34]} 20. Bxd4 {[%clk 0:02:14]}  Rae8 {[%clk 0:00:25]} 21. Bc5 {[%clk 0:02:01]}  Ne7 {[%clk 0:00:21]} 22. Qf2 {[%clk 0:01:57]}  b5 {[%clk 0:00:17]} 23. Bd3 {[%clk 0:01:54]}  Qd5 {[%clk 0:00:12]} 24. Nd6 {[%clk 0:01:53]}  Rb8 {[%clk 0:00:10]} 25. Be4 {[%clk 0:01:40]}  Qh5 {[%clk 0:00:11]} 26. Bf3 {[%clk 0:01:41]}  Qh6 {[%clk 0:00:11]} 27. Ne4 {[%clk 0:01:28]}  Rfe8 {[%clk 0:00:10]} 28. Bd4 {[%clk 0:01:27]}  e5 {[%clk 0:00:05]} 29. fxe5 {[%clk 0:01:26]}  Nf5 {[%clk 0:00:03]} 30. exf6 {[%clk 0:01:25]}  Bf8 {[%clk 0:00:02]} 31. f7+ {[%clk 0:01:17]}  Kxf7 {[%clk 0:00:02]} 32. h4 {[%clk 0:01:13]}  Kg8 {[%clk 0:00:02]} 33. Nf6+ {[%clk 0:01:13]}  Kf7 {[%clk 0:00:02]} 34. Nxd7 {[%clk 0:01:11]} 1-0


[Site "https://www.chess.com"]

[Event "Titled Tuesday Blitz January 17 Late 2023"]
[White "Rojas Salas, Steven"]
[Black "Fernandez Guillen, Ernesto J."]
[WhiteFideId "3819434"]
[BlackFideId "3512428"]
[WhiteElo "2217"]
[BlackElo "2477"]
[Result "0-1"]
[Round "08"]
[TimeControl "180+2"]
[Date "2023.01.17"]
[WhiteClock "0:00:08"]
[BlackClock "0:00:14"]

1. d4 {[%clk 0:03:00]}  Nf6 {[%clk 0:02:59]} 2. c4 {[%clk 0:03:00]}  g6 {[%clk 0:02:59]} 3. Nc3 {[%clk 0:02:59]}  d6 {[%clk 0:02:59]} 4. e4 {[%clk 0:02:59]}  Bg7 {[%clk 0:02:59]} 5. Nf3 {[%clk 0:03:00]}  O-O {[%clk 0:03:00]} 6. Be2 {[%clk 0:03:01]}  e5 {[%clk 0:03:01]} 7. Be3 {[%clk 0:03:01]}  Nc6 {[%clk 0:03:01]} 8. O-O {[%clk 0:02:56]}  h6 {[%clk 0:03:00]} 9. d5 {[%clk 0:02:49]}  Ne7 {[%clk 0:03:00]} 10. Nd2 {[%clk 0:02:48]}  Ne8 {[%clk 0:03:00]} 11. f3 {[%clk 0:02:37]}  f5 {[%clk 0:03:01]} 12. c5 {[%clk 0:02:36]}  f4 {[%clk 0:03:01]} 13. Bf2 {[%clk 0:02:36]}  Rf7 {[%clk 0:03:02]} 14. Nc4 {[%clk 0:02:34]}  Bf8 {[%clk 0:03:01]} 15. Rc1 {[%clk 0:02:26]}  g5 {[%clk 0:03:00]} 16. Nb5 {[%clk 0:02:10]}  b6 {[%clk 0:02:59]} 17. cxd6 {[%clk 0:01:56]}  cxd6 {[%clk 0:02:59]} 18. Nbxd6 {[%clk 0:01:50]}  Nxd6 {[%clk 0:03:00]} 19. Nxe5 {[%clk 0:01:50]}  Bg7 {[%clk 0:02:59]} 20. Bd4 {[%clk 0:01:36]}  Rf8 {[%clk 0:02:51]} 21. Nc4 {[%clk 0:01:21]}  Nf7 {[%clk 0:02:39]} 22. Bxg7 {[%clk 0:01:18]}  Kxg7 {[%clk 0:02:40]} 23. Qd4+ {[%clk 0:01:18]}  Kg8 {[%clk 0:02:41]} 24. Qf6 {[%clk 0:01:13]}  Kh7 {[%clk 0:02:11]} 25. e5 {[%clk 0:00:47]}  Ng6 {[%clk 0:02:11]} 26. Qxd8 {[%clk 0:00:30]}  Rxd8 {[%clk 0:01:34]} 27. e6 {[%clk 0:00:30]}  Nfe5 {[%clk 0:00:58]} 28. Nxe5 {[%clk 0:00:25]}  Nxe5 {[%clk 0:00:59]} 29. Rc7+ {[%clk 0:00:22]}  Kg6 {[%clk 0:00:57]} 30. Rfc1 {[%clk 0:00:22]}  Kf6 {[%clk 0:00:53]} 31. Rh7 {[%clk 0:00:17]}  Rxd5 {[%clk 0:00:47]} 32. Rxh6+ {[%clk 0:00:17]}  Ng6 {[%clk 0:00:44]} 33. e7 {[%clk 0:00:16]}  Bf5 {[%clk 0:00:35]} 34. Rc6+ {[%clk 0:00:16]}  Kg7 {[%clk 0:00:35]} 35. Rh5 {[%clk 0:00:15]}  Bd7 {[%clk 0:00:30]} 36. Rc7 {[%clk 0:00:16]}  Re8 {[%clk 0:00:27]} 37. h4 {[%clk 0:00:16]}  Rxe7 {[%clk 0:00:26]} 38. Bc4 {[%clk 0:00:17]}  Rd1+ {[%clk 0:00:26]} 39. Kh2 {[%clk 0:00:17]}  gxh4 {[%clk 0:00:24]} 40. Bd5 {[%clk 0:00:15]}  h3 {[%clk 0:00:23]} 41. Be4 {[%clk 0:00:16]}  hxg2 {[%clk 0:00:22]} 42. Kxg2 {[%clk 0:00:16]}  Bh3+ {[%clk 0:00:19]} 43. Kxh3 {[%clk 0:00:14]}  Rxc7 {[%clk 0:00:20]} 44. Rg5 {[%clk 0:00:14]}  Rd6 {[%clk 0:00:19]} 45. Kg4 {[%clk 0:00:15]}  Rf7 {[%clk 0:00:15]} 46. Kh5 {[%clk 0:00:14]}  Rff6 {[%clk 0:00:16]} 47. a4 {[%clk 0:00:13]}  Kf7 {[%clk 0:00:16]} 48. a5 {[%clk 0:00:14]}  Ne7 {[%clk 0:00:15]} 49. a6 {[%clk 0:00:13]}  b5 {[%clk 0:00:13]} 50. Rxb5 {[%clk 0:00:12]}  Rxa6 {[%clk 0:00:13]} 51. Rb8 {[%clk 0:00:11]}  Rab6 {[%clk 0:00:13]} 52. Ra8 {[%clk 0:00:11]}  Rxb2 {[%clk 0:00:13]} 53. Kg5 {[%clk 0:00:11]}  Rb5+ {[%clk 0:00:13]} 54. Kg4 {[%clk 0:00:11]}  Ra5 {[%clk 0:00:13]} 55. Rh8 {[%clk 0:00:12]}  Ke6 {[%clk 0:00:12]} 56. Rd8 {[%clk 0:00:10]}  Ke5 {[%clk 0:00:11]} 57. Bc2 {[%clk 0:00:10]}  Nd5 {[%clk 0:00:11]} 58. Re8+ {[%clk 0:00:10]}  Kd4 {[%clk 0:00:11]} 59. Re4+ {[%clk 0:00:09]}  Kc3 {[%clk 0:00:12]} 60. Bd1 {[%clk 0:00:09]}  Ne3+ {[%clk 0:00:13]} 61. Kh4 {[%clk 0:00:09]}  Nxd1 {[%clk 0:00:12]} 62. Re8 {[%clk 0:00:08]}  Ne3 {[%clk 0:00:12]} 63. Rc8+ {[%clk 0:00:08]}  Kd2 {[%clk 0:00:13]} 64. Rb8 {[%clk 0:00:08]}  Ke2 {[%clk 0:00:12]} 65. Rb2+ {[%clk 0:00:07]}  Kxf3 {[%clk 0:00:13]} 66. Rf2+ {[%clk 0:00:08]}  Kxf2 {[%clk 0:00:13]} 67. Kh3 {[%clk 0:00:08]}  Rh5# {[%clk 0:00:14]} 0-1


[Site "https://www.chess.com"]

[Event "Titled Tuesday Blitz January 17 Late 2023"]
[White "Kamsky, Gata"]
[Black "Djordjevic, Vuk"]
[WhiteFideId "2000024"]
[BlackFideId "902098"]
[WhiteElo "2665"]
[BlackElo "2375"]
[Result "1-0"]
[Round "08"]
[TimeControl "180+2"]
[Date "2023.01.17"]
[WhiteClock "0:00:19"]
[BlackClock "0:00:03"]

1. e4 {[%clk 0:03:00]}  d5 {[%clk 0:02:58]} 2. exd5 {[%clk 0:03:00]}  Qxd5 {[%clk 0:02:58]} 3. Nc3 {[%clk 0:02:59]}  Qd6 {[%clk 0:02:59]} 4. d4 {[%clk 0:02:57]}  Nf6 {[%clk 0:02:59]} 5. Nf3 {[%clk 0:02:56]}  c6 {[%clk 0:03:00]} 6. h3 {[%clk 0:02:51]}  g6 {[%clk 0:02:57]} 7. Bc4 {[%clk 0:02:48]}  Be6 {[%clk 0:02:56]} 8. Bb3 {[%clk 0:02:48]}  Bg7 {[%clk 0:02:55]} 9. O-O {[%clk 0:02:47]}  O-O {[%clk 0:02:54]} 10. Re1 {[%clk 0:02:47]}  Bxb3 {[%clk 0:02:54]} 11. axb3 {[%clk 0:02:47]}  Nbd7 {[%clk 0:02:51]} 12. Qe2 {[%clk 0:02:37]}  Rfe8 {[%clk 0:02:47]} 13. Bg5 {[%clk 0:02:34]}  Nb6 {[%clk 0:02:32]} 14. Bh4 {[%clk 0:02:25]}  a6 {[%clk 0:02:20]} 15. Bg3 {[%clk 0:02:25]}  Qd7 {[%clk 0:02:16]} 16. Rad1 {[%clk 0:02:23]}  Rad8 {[%clk 0:02:02]} 17. Ne5 {[%clk 0:02:22]}  Qf5 {[%clk 0:01:58]} 18. Rd3 {[%clk 0:02:15]}  Nbd5 {[%clk 0:01:54]} 19. Rf3 {[%clk 0:02:00]}  Qh5 {[%clk 0:01:36]} 20. Ne4 {[%clk 0:01:55]}  Nxe4 {[%clk 0:01:16]} 21. Qxe4 {[%clk 0:01:55]}  Nf6 {[%clk 0:01:17]} 22. Qe3 {[%clk 0:01:50]}  Rf8 {[%clk 0:01:02]} 23. c3 {[%clk 0:01:46]}  Nd5 {[%clk 0:00:48]} 24. Qe2 {[%clk 0:01:45]}  Nf6 {[%clk 0:00:26]} 25. Nd3 {[%clk 0:01:33]}  Rfe8 {[%clk 0:00:25]} 26. Nc5 {[%clk 0:01:32]}  b6 {[%clk 0:00:21]} 27. Nxa6 {[%clk 0:01:31]}  Rd7 {[%clk 0:00:17]} 28. Nb4 {[%clk 0:01:21]}  Rc8 {[%clk 0:00:17]} 29. Nd3 {[%clk 0:01:16]}  Rb7 {[%clk 0:00:14]} 30. b4 {[%clk 0:01:15]}  Qd5 {[%clk 0:00:13]} 31. Re3 {[%clk 0:01:14]}  e6 {[%clk 0:00:12]} 32. Be5 {[%clk 0:01:13]}  Qd8 {[%clk 0:00:12]} 33. Rf3 {[%clk 0:01:10]}  Nd7 {[%clk 0:00:11]} 34. Bxg7 {[%clk 0:01:09]}  Kxg7 {[%clk 0:00:12]} 35. Qe4 {[%clk 0:01:05]}  Kg8 {[%clk 0:00:12]} 36. h4 {[%clk 0:01:04]}  Nf6 {[%clk 0:00:11]} 37. Qf4 {[%clk 0:01:02]}  Nd5 {[%clk 0:00:11]} 38. Qg3 {[%clk 0:01:02]}  h5 {[%clk 0:00:09]} 39. Re5 {[%clk 0:00:50]}  Kh7 {[%clk 0:00:05]} 40. Qh3 {[%clk 0:00:34]}  Qg8 {[%clk 0:00:05]} 41. g4 {[%clk 0:00:33]}  hxg4 {[%clk 0:00:05]} 42. Qxg4 {[%clk 0:00:33]}  Qg7 {[%clk 0:00:06]} 43. h5 {[%clk 0:00:31]}  Nf6 {[%clk 0:00:05]} 44. hxg6+ {[%clk 0:00:30]}  fxg6 {[%clk 0:00:05]} 45. Qxe6 {[%clk 0:00:29]}  Rf8 {[%clk 0:00:04]} 46. Nf4 {[%clk 0:00:24]}  Rbf7 {[%clk 0:00:04]} 47. Nh3 {[%clk 0:00:23]}  Kg8 {[%clk 0:00:02]} 48. Ng5 {[%clk 0:00:24]}  b5 {[%clk 0:00:02]} 49. Nxf7 {[%clk 0:00:23]}  Rxf7 {[%clk 0:00:02]} 50. Qxc6 {[%clk 0:00:22]}  Kh7 {[%clk 0:00:03]} 51. Qe6 {[%clk 0:00:22]}  Rf8 {[%clk 0:00:02]} 52. Rxb5 {[%clk 0:00:21]}  Kh8 {[%clk 0:00:01]} 53. Rg5 {[%clk 0:00:21]}  Qh6 {[%clk 0:00:01]} 54. Rgg3 {[%clk 0:00:21]}  Kg7 {[%clk 0:00:01]} 55. Qe5 {[%clk 0:00:20]}  Rf7 {[%clk 0:00:02]} 56. Kg2 {[%clk 0:00:20]}  Qh5 {[%clk 0:00:02]} 57. Qxh5 {[%clk 0:00:20]}  Nxh5 {[%clk 0:00:03]} 58. Rxf7+ {[%clk 0:00:19]} 1-0


[Site "https://www.chess.com"]

[Event "Titled Tuesday Blitz January 17 Late 2023"]
[White "Wieczorek, Oskar"]
[Black "Svane, Frederik"]
[WhiteFideId "1133950"]
[BlackFideId "12923044"]
[WhiteElo "2512"]
[BlackElo "2600"]
[Result "0-1"]
[Round "08"]
[TimeControl "180+2"]
[Date "2023.01.17"]
[WhiteClock "0:01:30"]
[BlackClock "0:02:23"]

1. e4 {[%clk 0:03:00]}  c5 {[%clk 0:02:59]} 2. Nf3 {[%clk 0:03:00]}  e6 {[%clk 0:02:59]} 3. g3 {[%clk 0:03:00]}  Nc6 {[%clk 0:02:59]} 4. Bg2 {[%clk 0:03:01]}  Nf6 {[%clk 0:02:58]} 5. Nc3 {[%clk 0:03:01]}  d5 {[%clk 0:02:58]} 6. exd5 {[%clk 0:03:02]}  exd5 {[%clk 0:02:59]} 7. d4 {[%clk 0:03:02]}  cxd4 {[%clk 0:03:00]} 8. Nxd4 {[%clk 0:03:02]}  Bg4 {[%clk 0:03:00]} 9. Qd3 {[%clk 0:02:55]}  Bc5 {[%clk 0:02:48]} 10. Be3 {[%clk 0:02:55]}  Qb6 {[%clk 0:02:38]} 11. Nxc6 {[%clk 0:02:34]}  Bxe3 {[%clk 0:02:36]} 12. Qxe3+ {[%clk 0:01:52]}  Qxe3+ {[%clk 0:02:36]} 13. fxe3 {[%clk 0:01:53]}  bxc6 {[%clk 0:02:36]} 14. e4 {[%clk 0:01:53]}  O-O-O {[%clk 0:02:32]} 15. exd5 {[%clk 0:01:52]}  cxd5 {[%clk 0:02:27]} 16. Nb5 {[%clk 0:01:42]}  Rhe8+ {[%clk 0:02:23]} 17. Kf1 {[%clk 0:01:30]} 0-1


[Site "https://www.chess.com"]